bitfinex/quotes_SOLUSD_20250305
["timestamp","ask_amount","ask_price","bid_price","bid_amount"]
[1741187832465,7.69112314,141.76,141.59,8.54415287]
[1741187832759,0.28432314,141.74,141.62,312.0]
[1741187833247,0.28432314,141.75,141.63,1.48216193]
[1741187833435,0.28432314,141.75,141.64,0.28432314]
[1741187834149,0.28432314,141.75,141.63,1.48216193]
[1741187834457,0.28432314,141.73,141.6,8.54386781]
[1741187834632,25.31482756,141.73,141.58,13.19843489]
[1741187834838,0.28432314,141.71,141.58,6.13560917]
[1741187835236,0.28432314,141.71,141.58,4.6531]
[1741187835672,0.28432314,141.71,141.58,7.063]
[1741187836048,0.28432314,141.71,141.59,1.48266402]
[1741187836250,9.8674,141.72,141.65,312.0]
[1741187836454,4.6923,141.75,141.65,312.0]
[1741187836764,4.6923,141.75,141.65,319.0594]
[1741187836765,2.1164,141.75,141.65,319.0594]
[1741187836936,0.28432314,141.74,141.65,312.0]
[1741187837138,18.933972,141.74,141.6,0.14216157]
[1741187837576,0.28432314,141.74,141.58,1.48249203]
[1741187837876,2.1164,141.75,141.61,0.28432314]
[1741187838167,2.1164,141.75,141.62,1.48211004]
[1741187838368,18.933972,141.74,141.6,0.14216157]
[1741187838560,18.933972,141.72,141.58,7.0627]
[1741187839071,18.933972,141.72,141.57,7.0635]
[1741187839072,18.933972,141.7,141.57,7.0635]
[1741187839269,18.933972,141.7,141.56,8.54672429]
[1741187839449,18.933972,141.7,141.55,8.54742696]
[1741187839771,18.933972,141.7,141.55,7.0646]
[1741187839936,0.28432314,141.7,141.55,8.54763335]
[1741187840140,11.777,141.71,141.59,0.28432314]
[1741187840356,9.2011,141.71,141.59,69.1683242]
[1741187840653,12.437,141.76,141.61,67.68585997]
[1741187840849,2.1164,141.75,141.63,0.28432314]
[1741187841070,14.5532,141.76,141.65,0.28432314]
[1741187841564,14.5532,141.76,141.6,69.8113]
[1741187841565,19.8438,141.76,141.61,1.48187238]
[1741187841773,0.14216157,141.75,141.61,0.14216157]
[1741187841935,0.14216157,141.75,141.63,0.14216157]
[1741187842338,19.8438,141.76,141.63,18.79181043]
[1741187842536,14.5532,141.76,141.65,7.34392314]
[1741187843072,9.8611,141.76,141.67,0.28432314]
[1741187843280,9.8611,141.76,141.66,0.28432314]
[1741187843281,11.9773,141.76,141.66,0.28432314]
[1741187843764,11.9773,141.76,141.67,312.0]
[1741187844073,10.107,141.8,141.68,1.76619434]
[1741187844570,7.4057,141.78,141.67,0.14216157]
[1741187844749,0.28432314,141.77,141.64,4.87]
[1741187844949,0.28432314,141.77,141.63,1.48201208]
[1741187845151,0.28432314,141.77,141.64,0.28432314]
[1741187845342,0.28432314,141.77,141.64,1.48174616]
[1741187845666,0.28432314,141.77,141.63,0.14216157]
[1741187845667,0.28432314,141.77,141.63,1.76626854]
[1741187846362,0.28432314,141.77,141.61,1.48193685]
[1741187846566,0.28432314,141.73,141.59,4.7229]
[1741187846869,2.85052314,141.73,141.6,20.41655478]
[1741187847172,2.85052314,141.73,141.63,312.0]
[1741187847549,0.28432314,141.71,141.55,9.3563]
[1741187847763,0.28432314,141.71,141.56,18.933972]
[1741187847950,0.14216157,141.71,141.57,1.48263239]
[1741187848273,18.64964886,141.72,141.53,6.04956463]
[1741187848274,18.79181043,141.72,141.53,6.04956463]
[1741187848492,9.813,141.71,141.53,6.04956463]
[1741187848681,0.14216157,141.68,141.53,4.567]
[1741187848851,0.14216157,141.68,141.54,1.62531264]
[1741187849358,18.933972,141.68,141.53,6.0500172]
[1741187849766,18.933972,141.68,141.54,48.75188797]
[1741187849767,0.14216157,141.68,141.54,48.75188797]
[1741187849971,0.14216157,141.68,141.56,0.28432314]
[1741187850269,28.5832,141.69,141.58,0.28432314]
[1741187850270,2.1172,141.69,141.58,0.28432314]
[1741187850486,9.813,141.71,141.58,0.28432314]
[1741187850487,9.813,141.71,141.59,1.48220587]
[1741187850693,5.2932,141.69,141.58,0.28432314]
[1741187850863,5.2932,141.69,141.58,0.14216157]
[1741187851068,5.2932,141.69,141.58,0.28432314]
[1741187851292,5.2932,141.69,141.59,1.48248968]
[1741187851473,5.2932,141.69,141.59,0.28432314]
[1741187852179,0.28432314,141.68,141.57,1.48261002]
[1741187852564,5.2932,141.69,141.59,7.0626]
[1741187852801,5.2932,141.69,141.6,0.28432314]
[1741187853176,2.1171,141.7,141.61,1.48241008]
[1741187853387,7.4099,141.7,141.6,1.48221288]
[1741187853574,7.4099,141.7,141.59,0.28432314]
[1741187853766,0.28432314,141.69,141.58,1.48243657]
[1741187853973,0.28432314,141.69,141.58,0.14216157]
[1741187854176,0.28432314,141.69,141.58,0.28432314]
[1741187854370,7.4099,141.7,141.6,0.28432314]
[1741187854580,7.4099,141.7,141.6,7.34632314]
[1741187854785,7.4099,141.7,141.62,0.28432314]
[1741187855292,7.4099,141.7,141.61,0.28432314]
[1741187855701,2.1165,141.74,141.65,0.28432314]
[1741187856065,7.4078,141.74,141.6,7.20416157]
[1741187856279,18.933972,141.73,141.6,0.14216157]
[1741187856481,18.933972,141.73,141.61,312.0]
[1741187856697,18.933972,141.71,141.61,312.0]
[1741187856874,18.933972,141.71,141.58,0.033]
[1741187857399,18.933972,141.67,141.58,0.033]
[1741187858508,0.28432314,141.67,141.58,0.033]
[1741187858687,7.4114,141.67,141.58,0.033]
[1741187859001,2.1175,141.67,141.58,0.033]
[1741187859170,2.1175,141.67,141.59,0.28432314]
[1741187859376,12.0117,141.68,141.6,1.48246457]
[1741187859571,9.8943,141.68,141.61,0.28432314]
[1741187859771,2.1173,141.69,141.63,312.0]
[1741187860704,2.1169,141.71,141.63,312.0]
[1741187861080,7.4093,141.71,141.63,312.0]
[1741187861300,0.28432314,141.7,141.58,0.033]
[1741187861801,0.28432314,141.7,141.58,7.096]
[1741187861999,0.28432314,141.7,141.58,0.033]
[1741187862186,2.1169,141.71,141.59,0.28432314]
[1741187862497,2.1169,141.71,141.61,0.28432314]
[1741187862695,2.1169,141.71,141.63,0.28432314]
[1741187863497,0.28432314,141.7,141.59,1.48212626]
[1741187863697,0.28432314,141.7,141.58,1.51547496]
[1741187864087,7.4093,141.71,141.58,74.6396984]
[1741187864289,7.4093,141.71,141.63,312.0]
[1741187864895,179.31089415,141.82,141.62,0.14216157]
[1741187864896,0.03,141.75,141.64,49.03621111]
[1741187865099,2.1165,141.74,141.65,48.75188797]
[1741187865420,2.1165,141.74,141.63,0.28432314]
[1741187865717,0.28432314,141.73,141.62,11.7343]
[1741187865890,0.28432314,141.73,141.58,50.26710054]
[1741187866086,0.28432314,141.73,141.59,0.28432314]
[1741187866282,0.28432314,141.73,141.61,0.14216157]
[1741187866594,0.28432314,141.73,141.62,1.48239952]
[1741187866794,5.2917,141.73,141.62,1.48239952]
[1741187867009,0.28432314,141.72,141.6,1.48219583]
[1741187867181,0.28432314,141.72,141.59,1.6573528]
[1741187867381,2.85052314,141.72,141.59,0.17516157]
[1741187867598,2.85052314,141.72,141.59,0.31732314]
[1741187867989,2.85052314,141.72,141.59,319.23756157]
[1741187868386,2.85052314,141.72,141.6,1.48244296]
[1741187868720,2.85052314,141.72,141.59,0.033]
[1741187868721,0.28432314,141.7,141.59,0.033]
[1741187869631,18.933972,141.68,141.59,0.033]
[1741187870225,0.28432314,141.68,141.59,0.033]
[1741187870423,10.1194,141.69,141.59,0.033]
[1741187870589,0.28432314,141.68,141.59,0.033]
[1741187870793,5.2939,141.67,141.59,0.033]
[1741187871494,0.28432314,141.66,141.59,0.033]
[1741187871913,5.2939,141.67,141.59,0.033]
[1741187872730,7.4114,141.67,141.59,0.033]
[1741187873026,18.933972,141.66,141.59,0.033]
[1741187873729,17.9993,141.67,141.59,0.033]
[1741187873910,7.4114,141.67,141.59,0.31732314]
[1741187874229,2.1175,141.67,141.59,0.31732314]
[1741187874529,10.1194,141.69,141.6,1.48245391]
[1741187874530,2.1174,141.68,141.6,1.48245391]
[1741187874702,2.1174,141.68,141.61,0.28432314]
[1741187874907,14.7202,141.73,141.63,312.28432314]
[1741187875227,14.7202,141.73,141.64,1.48207863]
[1741187875401,2.1168,141.72,141.64,1.48207863]
[1741187875736,18.933972,141.71,141.59,0.033]
[1741187875903,0.28432314,141.71,141.59,7.0955]
[1741187876099,0.28432314,141.71,141.59,8.57790931]
[1741187876332,7.4089,141.72,141.6,0.28432314]
[1741187876505,7.4089,141.72,141.61,1.48212718]
[1741187876828,7.4089,141.72,141.64,0.28432314]
[1741187877035,7.4089,141.72,141.65,1.48187948]
[1741187877329,2.1165,141.74,141.66,0.28432314]
[1741187877505,2.1165,141.74,141.67,1.48148851]
[1741187877908,0.03,141.75,141.68,0.28432314]
[1741187878106,0.03,141.75,141.7,0.28432314]
[1741187878325,0.03,141.75,141.69,50.23331023]
[1741187878501,0.03,141.75,141.71,312.0]
[1741187878715,0.03,141.75,141.72,1.48126023]
[1741187878911,0.03,141.75,141.72,1.76550189]
[1741187879600,0.03,141.75,141.7,1.48107083]
[1741187879814,0.03,141.75,141.69,1.48127814]
[1741187880148,0.03,141.75,141.68,0.14216157]
[1741187880445,0.03,141.75,141.65,1.48143829]
[1741187880821,0.03,141.75,141.63,53.33358797]
[1741187880822,0.03,141.75,141.63,4.5817]
[1741187881010,0.03,141.75,141.61,1.48207742]
[1741187881011,0.28432314,141.73,141.61,1.48207742]
[1741187881213,21.529772,141.73,141.6,1.48219025]
[1741187881435,21.529772,141.73,141.59,11.37346379]
[1741187881755,2.88012314,141.73,141.59,67.18795176]
[1741187881927,2.88012314,141.73,141.62,312.0]
[1741187882123,9.6201,141.74,141.64,0.28432314]
[1741187882319,9.6201,141.74,141.65,1.48171312]
[1741187882643,9.6201,141.74,141.64,0.28432314]
[1741187882833,0.03,141.75,141.68,55.80998797]
[1741187883034,0.03,141.75,141.69,1.48137698]
[1741187883359,0.03,141.75,141.64,1.62357431]
[1741187883516,0.03,141.75,141.65,0.14216157]
[1741187883718,0.03,141.75,141.69,10.37432314]
[1741187883927,0.03,141.75,141.67,0.28432314]
[1741187884134,0.03,141.75,141.66,1.48116972]
[1741187884335,0.03,141.75,141.65,1.76610201]
[1741187884543,0.03,141.75,141.65,50.51798998]
[1741187884744,0.03,141.75,141.66,48.75188797]
[1741187884952,0.03,141.75,141.68,55.80998797]
[1741187885116,0.03,141.75,141.69,50.51738706]
[1741187885321,0.03,141.75,141.72,0.28432314]
[1741187885533,0.03,141.75,141.73,50.2328555]
[1741187885742,0.03,141.75,141.74,312.28432314]
[1741187885957,0.03,141.75,141.74,361.03621111]
[1741187886138,0.03,141.75,141.74,379.68585997]
[1741187886334,10.68985081,141.87,141.75,18.933972]
[1741187886529,10.68985081,141.87,141.8,0.28432314]
[1741187886824,12.80445081,141.87,141.8,1.48022076]
[1741187887060,10.68985081,141.87,141.81,1.48051863]
[1741187887422,10.68985081,141.87,141.82,53.84511111]
[1741187887623,10.68985081,141.87,141.84,0.28432314]
[1741187887819,10.68985081,141.87,141.83,1.47977742]
[1741187888055,0.03,141.9,141.84,0.28432314]
[1741187888235,0.03,141.9,141.85,1.4796714]
[1741187888557,0.03,141.9,141.89,48.89404954]
[1741187888760,0.03,141.9,141.89,50.51538575]
[1741187888951,0.03,141.9,141.89,76.21273461]
[1741187889134,0.03,141.92,141.9,18.933972]
[1741187889457,10.68985081,141.94,141.93,40.933972]
[1741187889627,10.68985081,141.94,141.93,94.19539143]
[1741187890145,10.68985081,141.94,141.93,55.54574257]
[1741187890346,10.68985081,141.94,141.93,6.50953146]
[1741187890542,10.68985081,141.94,141.91,1.47886308]
[1741187890728,0.28432314,142.02,141.88,1.47906114]
[1741187890932,0.28432314,142.0,141.87,6.53882284]
[1741187891158,0.28432314,141.98,141.86,1.4795653]
[1741187891661,0.28432314,141.98,141.87,48.75188797]
[1741187891839,10.129,141.99,141.88,50.2312338]
[1741187892162,7.3935,142.02,141.9,48.75188797]
[1741187892163,0.14216157,142.01,141.9,48.75188797]
[1741187892450,2.1123,142.02,141.92,48.75188797]
[1741187892652,0.28432314,142.01,141.92,1.47896958]
[1741187892861,7.3932,142.02,141.93,1.47910998]
[1741187893160,10.5903,142.05,141.94,312.0]
[1741187893360,0.03,142.05,141.94,312.0]
[1741187893579,18.963972,142.05,141.92,48.75188797]
[1741187893854,18.963972,142.05,141.91,48.75188797]
[1741187894038,18.963972,142.05,141.91,10.9615954]
[1741187895036,0.28432314,142.03,141.91,10.9615954]
[1741187895343,0.28432314,142.03,141.91,1.47926706]
[1741187895657,0.28432314,142.03,141.9,10.9615954]
[1741187895955,18.933972,142.01,141.9,10.9615954]
[1741187896160,18.933972,141.99,141.9,9.54e-05]
[1741187896524,18.933972,141.99,141.87,21.92319081]
[1741187897027,18.933972,141.97,141.87,9.081e-05]
[1741187897366,17.9601,141.98,141.75,4.9185]
[1741187897367,18.933972,141.93,141.75,4.9185]
[1741187897561,18.933972,141.93,141.76,1.48057315]
[1741187897744,18.933972,141.93,141.79,48.75188797]
[1741187897940,18.933972,141.93,141.8,1.48012357]
[1741187898148,18.933972,141.93,141.79,1.48024023]
[1741187898523,18.933972,141.93,141.8,48.75188797]
[1741187898730,18.933972,141.93,141.81,1.48005758]
[1741187898959,9.3906,141.94,141.77,7.0532]
[1741187899179,18.933972,141.93,141.79,0.28432314]
[1741187899467,2.1137,141.93,141.83,0.28432314]
[1741187899775,5.2834,141.96,141.84,1.47962403]
[1741187899945,0.28432314,141.95,141.84,1.47962403]
[1741187900263,0.28432314,141.95,141.85,312.0]
[1741187900933,0.28432314,141.93,141.85,312.0]
[1741187901134,0.28432314,141.93,141.78,7.0531]
[1741187901352,0.28432314,141.93,141.8,0.28432314]
[1741187901570,18.933972,141.93,141.8,1.48008219]
[1741187901870,18.963972,141.93,141.8,1.48008219]
[1741187902251,18.963972,141.93,141.79,1.48013584]
[1741187902955,18.963972,141.93,141.79,50.23202381]
[1741187903145,1.4092,141.92,141.8,7.0521]
[1741187903473,4.9323,141.92,141.81,1.48008775]
[1741187903634,0.28432314,141.91,141.81,1.48008775]
[1741187903835,1.4092,141.92,141.82,0.28432314]
[1741187904037,0.03,141.93,141.85,312.0]
[1741187904344,1.4391,141.93,141.85,312.0]
[1741187904539,0.03,141.93,141.86,1.47992471]
[1741187904760,0.03,141.93,141.87,48.75188797]
[1741187904956,0.03,141.93,141.89,0.28432314]
[1741187905157,0.03,141.93,141.91,7.0467]
[1741187905349,0.03,141.93,141.92,1.76324598]
[1741187905957,0.03,141.93,141.92,50.51513395]
[1741187906157,0.03,141.93,141.92,1.47892284]
[1741187906573,0.03,141.93,141.91,1.47903804]
[1741187906952,0.03,141.93,141.89,1.47922165]
[1741187907150,0.03,141.93,141.86,6.41203399]
[1741187907363,0.03,141.93,141.86,1.47943399]
[1741187907553,0.03,141.93,141.87,312.0]
[1741187907974,0.03,141.93,141.81,14.7774]
[1741187908275,18.963972,141.93,141.75,9.6654]
[1741187908457,20.963972,141.93,141.75,1.48066912]
[1741187908660,20.963972,141.93,141.74,6.31407955]
[1741187908960,20.963972,141.93,141.71,1.48099598]
[1741187908961,0.28432314,141.89,141.71,1.48099598]
[1741187909267,18.933972,141.87,141.71,1.48099598]
[1741187909775,18.933972,141.87,141.7,1.48111039]
[1741187910348,18.933972,141.85,141.7,1.48111039]
[1741187910550,18.933972,141.85,141.7,0.033]
[1741187910858,18.933972,141.83,141.7,312.033]
[1741187911162,0.28432314,141.81,141.7,312.033]
[1741187911367,18.933972,141.81,141.7,0.033]
[1741187912249,0.28432314,141.81,141.7,0.033]
[1741187912769,18.933972,141.81,141.7,0.033]
[1741187913071,0.28432314,141.81,141.7,0.033]
[1741187913274,18.933972,141.79,141.7,0.033]
[1741187914249,25.24558667,141.79,141.7,0.033]
[1741187914675,18.933972,141.79,141.7,0.033]
[1741187915184,0.28432314,141.77,141.7,0.033]
[1741187915979,0.28432314,141.77,141.59,55.84738797]
[1741187915980,18.933972,141.73,141.59,0.033]
[1741187917095,20.933972,141.73,141.59,0.033]
[1741187917304,18.933972,141.71,141.59,0.033]
[1741187917872,18.933972,141.71,141.59,312.033]
[1741187918895,18.933972,141.71,141.59,0.033]
[1741187919093,0.28432314,141.71,141.59,0.033]
[1741187919287,0.28432314,141.69,141.59,0.033]
[1741187919473,0.14216157,141.69,141.59,0.033]
[1741187919671,0.14216157,141.68,141.59,0.033]
[1741187921301,18.79181043,141.69,141.59,0.033]
[1741187921302,18.933972,141.66,141.59,0.033]
[1741187923409,0.28432314,141.64,141.59,0.033]
[1741187924401,4.9417,141.65,141.59,0.033]
[1741187924593,0.28432314,141.64,141.59,0.033]
[1741187924800,0.14216157,141.67,141.59,0.033]
[1741187924990,1.55386157,141.67,141.59,0.033]
[1741187925186,0.14216157,141.66,141.59,0.033]
[1741187925494,1.4119,141.65,141.59,0.033]
[1741187925688,1.4117,141.67,141.59,0.033]
[1741187925885,0.14216157,141.65,141.59,0.033]
[1741187927178,1.4117,141.67,141.59,0.033]
[1741187927385,1.4115,141.69,141.59,0.033]
[1741187927577,18.64964886,141.68,141.59,0.033]
[1741187927779,0.28432314,141.67,141.59,0.033]
[1741187929517,23.874572,141.68,141.59,0.033]
[1741187929726,5.22492314,141.68,141.59,0.033]
[1741187930324,1.4116,141.68,141.59,0.033]
[1741187930697,0.28432314,141.67,141.59,0.033]
[1741187930903,0.28432314,141.67,141.59,312.033]
[1741187931115,0.28432314,141.67,141.59,0.033]
[1741187931429,1.4118,141.66,141.59,0.033]
[1741187931622,0.28432314,141.65,141.59,0.033]
[1741187932121,0.14216157,141.67,141.59,0.033]
[1741187932496,0.28432314,141.67,141.59,0.033]
[1741187933395,1.4118,141.66,141.59,0.033]
[1741187933608,0.28432314,141.67,141.59,0.033]
[1741187933816,0.14216157,141.66,141.59,0.033]
[1741187934028,1.4117,141.67,141.59,312.033]
[1741187934911,0.28432314,141.68,141.59,312.033]
[1741187935128,1.4115,141.69,141.6,1.4825546]
[1741187935439,13.7173291,141.74,141.6,1.4825546]
[1741187935725,13.7173291,141.74,141.59,0.033]
[1741187935726,0.03,141.69,141.59,0.033]
[1741187936409,0.28432314,141.67,141.59,0.033]
[1741187937402,0.28432314,141.65,141.59,0.033]
[1741187937716,1.4118,141.66,141.59,0.033]
[1741187938231,1.4118,141.66,141.59,312.033]
[1741187938706,1.4118,141.66,141.59,0.033]
[1741187939735,4.9413,141.66,141.59,0.033]
[1741187939932,0.28432314,141.65,141.59,0.033]
[1741187940500,18.933972,141.65,141.59,0.033]
[1741187940734,0.28432314,141.63,141.59,0.033]
[1741187940903,0.28432314,141.63,141.58,0.033]
[1741187941803,1.4122,141.62,141.58,0.033]
[1741187942434,1.4118,141.66,141.58,0.033]
[1741187942735,4.9413,141.66,141.58,0.033]
[1741187942903,0.28432314,141.65,141.58,0.033]
[1741187943529,4.9413,141.66,141.58,0.033]
[1741187943936,4.9413,141.66,141.58,1.51574073]
[1741187944118,4.9413,141.66,141.58,0.033]
[1741187945043,0.28432314,141.65,141.58,0.033]
[1741187945212,0.28432314,141.65,141.58,312.033]
[1741187946039,0.28432314,141.63,141.58,0.033]
[1741187946410,12.0021,141.64,141.58,0.033]
[1741187946838,4.942,141.64,141.58,0.033]
[1741187947036,0.28432314,141.63,141.58,0.033]
[1741187947221,4.942,141.64,141.58,0.033]
[1741187947738,0.28432314,141.63,141.58,0.033]
[1741187947919,4.9427,141.62,141.58,0.033]
[1741187948130,18.933972,141.61,141.54,0.033]
[1741187948517,0.28432314,141.61,141.54,0.033]
[1741187949215,4.9427,141.62,141.54,0.033]
[1741187949626,0.28432314,141.61,141.54,0.033]
[1741187949950,3.531,141.6,141.54,0.033]
[1741187950118,0.28432314,141.59,141.54,0.033]
[1741187950626,0.28432314,141.61,141.54,0.033]
[1741187951147,6.44549167,141.61,141.54,0.033]
[1741187951733,4.9427,141.62,141.54,0.033]
[1741187951939,6.16801529,141.63,141.54,0.033]
[1741187952241,12.0021,141.64,141.54,0.033]
[1741187952461,30.65174886,141.64,141.56,312.0]
[1741187952636,0.28432314,141.62,141.56,312.0]
[1741187952833,0.28432314,141.62,141.54,0.033]
[1741187953333,12.3255,141.61,141.51,1.64566116]
[1741187953536,18.933972,141.6,141.51,1.64566116]
[1741187954176,0.28432314,141.58,141.51,1.64566116]
[1741187954539,12.0064,141.59,141.51,1.64566116]
[1741187954765,0.28432314,141.58,141.51,1.64566116]
[1741187954984,4.9438,141.59,141.51,1.64566116]
[1741187955350,0.28432314,141.58,141.51,1.64566116]
[1741187955653,18.933972,141.58,141.51,1.64566116]
[1741187956046,0.28432314,141.56,141.51,1.64566116]
[1741187957148,18.933972,141.56,141.51,1.64566116]
[1741187957770,0.28432314,141.56,141.51,1.64566116]
[1741187958078,1.4129,141.55,141.51,1.64566116]
[1741187958372,4.9452,141.55,141.51,1.64566116]
[1741187958539,12.99567097,141.61,141.51,1.64566116]
[1741187958745,12.0055,141.6,141.51,1.64566116]
[1741187958961,0.28432314,141.59,141.51,1.64566116]
[1741187959150,12.0055,141.6,141.51,1.64566116]
[1741187959362,0.14216157,141.59,141.51,1.64566116]
[1741187959558,4.9434,141.6,141.51,1.64566116]
[1741187959767,4.9434,141.6,141.51,8.71216116]
[1741187959941,18.933972,141.59,141.51,1.64566116]
[1741187960144,0.28432314,141.57,141.51,1.64566116]
[1741187960342,4.9441,141.58,141.51,1.64566116]
[1741187960539,0.28432314,141.57,141.51,1.64566116]
[1741187961163,18.933972,141.57,141.51,1.64566116]
[1741187962275,4.9448,141.56,141.51,1.64566116]
[1741187962450,1.4128,141.56,141.51,1.64566116]
[1741187963376,4.9448,141.56,141.51,1.64566116]
[1741187964156,3.5315,141.59,141.51,1.64566116]
[1741187964346,3.5615,141.59,141.51,1.64566116]
[1741187964578,0.14216157,141.58,141.51,1.64566116]
[1741187964786,18.933972,141.58,141.51,1.64566116]
[1741187964983,3.5615,141.59,141.51,1.64566116]
[1741187965153,3.5615,141.59,141.51,10.19569658]
[1741187965352,0.03,141.59,141.52,312.0]
[1741187966609,0.03,141.59,141.51,1.64566116]
[1741187967596,3.5733489,141.59,141.51,1.64566116]
[1741187967795,0.03,141.59,141.51,1.64566116]
[1741187968294,18.963972,141.59,141.51,1.64566116]
[1741187970217,3.11222314,141.57,141.51,1.64566116]
[1741187970388,5.22952314,141.55,141.51,1.64566116]
[1741187970587,4.9452,141.55,141.51,1.64566116]
[1741187972416,1.4131,141.53,141.51,1.64566116]
[1741187974303,1.4128,141.56,141.51,1.64566116]
[1741187974624,4.9445,141.57,141.51,1.64566116]
[1741187975424,0.28432314,141.56,141.51,1.64566116]
[1741187975628,18.933972,141.56,141.51,1.64566116]
[1741187976528,0.28432314,141.53,141.51,1.64566116]
[1741187976911,0.28432314,141.53,141.47,1.9768359]
[1741187977107,0.28432314,141.53,141.46,0.79496854]
[1741187977108,18.933972,141.51,141.46,0.79496854]
[1741187977304,18.933972,141.51,141.37,10.1683]
[1741187977823,18.933972,141.51,141.39,312.0]
[1741187978225,10.165,141.5,141.29,58.8164869]
[1741187978534,0.28432314,141.47,141.3,8.56224142]
[1741187978705,0.28432314,141.47,141.31,18.64964886]
[1741187978910,0.28432314,141.47,141.32,1.48511682]
[1741187979108,12.0157,141.48,141.34,30.5451917]
[1741187979332,12.0157,141.48,141.35,1.48470611]
[1741187979506,4.9476,141.48,141.36,30.5451917]
[1741187979707,4.9476,141.48,141.38,15.0381]
[1741187980019,4.9476,141.48,141.39,1.48458634]
[1741187980221,4.9476,141.48,141.38,16.52268771]
[1741187980409,4.9476,141.48,141.38,15.0381]
[1741187981318,12.0157,141.48,141.39,312.0]
[1741187981533,4.9476,141.48,141.39,312.0]
[1741187981839,4.9476,141.48,141.4,1.48455838]
[1741187982408,3.5334,141.51,141.41,7.35562314]
[1741187982635,3.5334,141.51,141.42,1.48420536]
[1741187983014,3.5334,141.51,141.42,31.74507392]
[1741187983221,3.5334,141.51,141.42,1.48420536]
[1741187983417,1.4132,141.52,141.43,30.5451917]
[1741187983742,12.2634,141.59,141.45,30.5451917]
[1741187983743,3.532,141.57,141.45,30.5451917]
[1741187983914,3.532,141.57,141.47,4.9907]
[1741187984814,3.532,141.57,141.48,1.48376997]
[1741187985217,3.532,141.57,141.47,4.9907]
[1741187985429,3.532,141.57,141.47,6.47440953]
[1741187985636,3.532,141.57,141.47,4.9907]
[1741187985637,19.11394061,141.57,141.47,4.9907]
[1741187986135,18.933972,141.56,141.44,1.48385971]
[1741187986310,18.933972,141.56,141.42,4.6473]
[1741187986507,0.28432314,141.56,141.42,6.13148955]
[1741187986709,12.0098,141.55,141.42,6.13148955]
[1741187986912,18.933972,141.54,141.42,4.6473]
[1741187987914,18.933972,141.54,141.47,0.033]
[1741187988327,22.65311974,141.55,141.47,0.033]
[1741187988825,19.0744,141.55,141.42,36.3925675]
[1741187989026,19.0744,141.55,141.42,6.13169894]
[1741187990048,19.0744,141.55,141.42,13.20269894]
[1741187990250,4.9452,141.55,141.45,30.26086856]
[1741187990543,4.9452,141.55,141.46,1.48376962]
[1741187991043,4.9452,141.55,141.44,1.62593441]
[1741187991357,4.9452,141.55,141.43,30.26086856]
[1741187991358,12.0098,141.55,141.45,312.0]
[1741187991528,4.9452,141.55,141.45,312.0]
[1741187991723,4.9452,141.55,141.46,1.4840767]
[1741187991923,4.9452,141.55,141.42,4.6473]
[1741187992131,17.03394012,141.54,141.44,0.28432314]
[1741187992332,17.03394012,141.54,141.45,1.4838091]
[1741187992583,17.03394012,141.54,141.46,0.28432314]
[1741187992865,1.4129,141.55,141.48,7.0681]
[1741187993065,1.4129,141.55,141.49,1.48338972]
[1741187993962,0.03,141.57,141.47,11.50293769]
[1741187994256,0.03,141.57,141.48,0.28432314]
[1741187994430,0.03,141.57,141.5,0.28432314]
[1741187994635,0.03,141.57,141.51,1.48324254]
[1741187995032,0.03,141.57,141.51,312.0]
[1741187995238,0.03,141.57,141.52,1.48338415]
[1741187995456,0.03,141.57,141.53,0.28432314]
[1741187995660,0.03,141.57,141.55,0.28432314]
[1741187995840,0.03,141.57,141.56,1.48269358]
[1741187996043,0.03,141.57,141.56,8.54679358]
[1741187996244,0.03,141.57,141.55,1.48267415]
[1741187996478,0.03,141.57,141.56,0.28432314]
[1741187996873,0.03,141.57,141.56,59.02224056]
[1741187997202,0.03,141.57,141.56,40.3725917]
[1741187997596,0.03,141.57,141.56,59.02224056]
[1741187997904,0.03,141.59,141.58,23.953272]